Cogmind - Beta 16.1 @@@ ROGUE MODE // 2026.04.20 @ 18:02:41 Player: Thqwib-Linux Result: Destroyed by G-47 Trooper with Particle Gun Performance ------------- Evolutions (0) 0 Regions Visited (1) 200 Robots Destroyed (13) 65 Value Destroyed (264) 264 Prototype IDs (3) 60 Alien Tech Used (0) 0 Bonus (0) 0 TOTAL SCORE: 589 Bonus ------- None Cogmind --------- Core Integrity 0/250 Matter 299/300 Energy 250/250 System Corruption 2% Temperature Cool (27) Movement Treading (160) Location -10/Materials Parts ------- > --- POWER (1) -------- Ion Engine > --- PROPULSION (2) --- Light Treads Light Treads (fused) > --- UTILITY (2) ------ Large Storage Unit Targeting Computer > --- WEAPON (2) ------- (None) > --- INVENTORY (15) --- Light Treads Compact Wheel Peak State ------------ > --- POWER ------------ Ion Engine > --- PROPULSION ------- Light Treads Compact Wheel > --- UTILITY ---------- Small Storage Unit Seismic Detector > --- WEAPON ----------- Small Laser Light Assault Rifle > --- INVENTORY -------- Light Ion Engine Light Treads Compact Wheel Compact Wheel [Rating: 7] Favorites ----------- Power Ion Engine Engine Ion Engine Propulsion Light Treads Treads Light Treads Leg Aluminum Leg Wheel Compact Wheel Utility Targeting Computer Device Seismic Detector Storage Large Storage Unit Processor Targeting Computer Weapon Small Laser Energy Gun Small Laser Ballistic Gun Light Assault Rifle Special Weapon Mining Laser Build | -11 -10 ------- Run | Yrd Mat Slots Evolved . | . . Power . | . . Propulsion . | . . Utility . | . . Weapon . | . . Parts Attached 12 | 4 8 Power 1 | . 1 Engine 1 | . 1 Core . | . . Reactor . | . . Propulsion 6 | 3 3 Treads 2 | 1 1 Leg . | . . Wheel 4 | 2 2 Hover . | . . Flight . | . . Utility 3 | 1 2 Device 1 | 1 . Storage 1 | . 1 Processor 1 | . 1 Hackware . | . . Protection . | . . Artifact . | . . Weapon 2 | . 2 Energy Gun 1 | . 1 Energy Cannon . | . . Ballistic Gun . | . . Ballistic Cannon . | . . Launcher . | . . Special Weapon 1 | . 1 Impact Weapon . | . . Slashing Weapon . | . . Piercing Weapon . | . . Special Melee Weapon . | . . Unidentified Prototypes . | . . Parts Lost 6 | . 6 Power 1 | . 1 Propulsion 2 | . 2 Utility . | . . Weapon 3 | . 3 Highest Loss Streak 4 | . 4 To Critical Strikes . | . . Average Backups 4 | 4 4 Power . | 1 . Propulsion 3 | 3 3 Utility . | . . Weapon . | . . Tool/Special . | . . Unused Backups 15 | 9 6 Power 4 | 1 3 Propulsion 6 | 4 2 Utility 1 | 1 . Weapon 4 | 3 1 Tool/Special . | . . Average Slot Usage (%) 95 | . 95 Engine 14 | . 14 Treads 15 | . 15 Wheel 12 | . 12 Storage 14 | . 14 Processor 13 | . 13 Energy Gun 13 | . 13 Ballistic Gun 10 | . 10 Peak Build Rating 7 | 7 7 Average Rating 6 | 6 6 On Entrance 6 | 6 7 Avg Prop Armor Cover (%) 14 | 14 14 Naked Turns . | . . Heaviest Build 27 | 13 27 Greatest Support 40 | 16 40 Greatest Overweight (x) 1 | 1 1 Average Overweight (x) . | . . Largest Inventory Capacity 15 | 8 15 Average Capacity 12 | 8 12 Most Carried 8 | 8 6 Average Carried 4 | 3 4 Final Capacity 15 | 8 15 Final Carried 4 | 4 2 Class Distribution -------------------- 100% | Mutant Dominant Class ---------------- Mutant | -10/Materials Resources | -11 -10 ----------- Run | Yrd Mat Matter Collected 326 | 244 82 Remotely . | . . Salvage Created 467 | 112 355 Parts 28 | 9 19 Haulers Intercepted 1 | . 1 Recyclers Shooed 1 | 1 . Parts Field Recycled . | . . Retrieved Matter . | . . Parts Self-Destructed . | . . Prevented . | . . Parts Restored . | . . Kills | -11 -10 ------- Run | Yrd Mat Combat Hostiles Destroyed 8 | . 8 Guns 8 | . 8 Classes Destroyed 6 | 2 4 Tunneler 2 | 1 1 Hauler 1 | . 1 Recycler 1 | 1 . Watcher 1 | . 1 Swarmer 3 | . 3 Grunt 5 | . 5 Best Kill Streak 3 | 2 3 Combat Bots Only 3 | . 3 Max Kills in Single Turn 1 | 1 1 Gunslinging . | . . Exploded . | . . Melee . | . . Uniques/NPCs Destroyed . | . . Combat | -11 -10 -------- Run | Yrd Mat Hostile Shots Fired 96 | . 96 Missed 20 | . 20 Hits 76 | . 76 Projectile 76 | . 76 Critical Strikes 6 | . 6 Damage Taken 948 | . 948 Core 265 | . 265 Absorbed by Shields . | . . Core Remaining (%) 100 | 100 . Volleys Fired 58 | 4 54 Largest 2 | 2 2 Hottest 100 | 60 100 Shots Fired 105 | 8 97 Gun 104 | 8 96 Cannon . | . . Launcher . | . . Special 1 | . 1 Kinetic 46 | 4 42 Thermal 59 | 4 55 Explosive . | . . Electromagnetic . | . . Robot Hit Streak 14 | 2 14 Robot Miss Streak 5 | 5 2 Penetration Max . | . . Secondary Targets 2 | . 2 Max Gunslinging Chain 1 | . 1 Shots Hit Robots 83 | 3 80 Core Hits 29 | 3 26 Critical Kills . | . . Critical Parts Destroyed 1 | . 1 Critical Strikes 1 | . 1 Destroy 1 | . 1 Melee Attacks . | . . Impact . | . . Slashing . | . . Piercing . | . . Sneak Attacks . | . . Combat Hostiles . | . . Follow-up Attacks . | . . Damage Inflicted 837 | 39 798 Guns 830 | 39 791 Cannons . | . . Explosions . | . . Melee . | . . Ramming 7 | . 7 Kinetic 279 | 17 262 Thermal 551 | 22 529 Explosive . | . . Electromagnetic . | . . Impact . | . . Slashing . | . . Piercing . | . . Highest Corruption 2 | . 2 Average Corruption 1 | . 1 Corruption Purged . | . . Corruption Blocked . | . . Effects 8 | . 8 Message Errors 2 | . 2 Heat Flow Errors 2 | . 2 Parts Rejected 1 | . 1 Parts Fused 1 | . 1 Misfires 2 | . 2 Overload Shots . | . . Overflow Damage . | . . Projectiles . | . . Explosions . | . . Melee . | . . Knockbacks . | . . Impact . | . . Kinetic . | . . Secondary . | . . Self-Inflicted Damage . | . . Shots . | . . Rammed 6 | . 6 Targets Rammed 6 | . 6 Kicked . | . . Crushed . | . . Highest Temperature 243 | 40 243 Average Temperature 68 | 20 71 Received Heat Transfer 543 | . 543 Siege Activations . | . . Martial Activations . | . . Shielding Activations . | . . Robots Disrupted . | . . Combat Hostiles . | . . Robots Corrupted . | . . Combat Hostiles . | . . Parts Fried . | . . Impact Corruptions . | . . Robots Melted . | . . Combat Hostiles . | . . Parts Melted 2 | . 2 Heat Transferred 1225 | 50 1175 Parts Sabotaged . | . . Parts Stolen . | . . Parts Stripped . | . . Power Chain Reactions . | . . Alert | -11 -10 ------- Run | Yrd Mat Maximum Alert Level . | . . Low Security (%) 100 | 100 100 Level 1 . | . . Level 2 . | . . Level 3 . | . . Level 4 . | . . Level 5 . | . . High Security . | . . Max Security . | . . Peak Influence 74 | 10 74 Initial . | . . Average 15 | 1 16 Influence Increases 279 | 10 269 Destroy 0b10 Robot/C 160 | . 160 Destroy 0b10 Robot/NC 25 | 10 15 Destroy Leader 44 | . 44 Successful Hack 35 | . 35 Lose Combat Pursuer 15 | . 15 Influence Decreases 279 | 10 269 Time Decay 182 | 10 172 Lost Part 27 | . 27 Purge Threat 70 | . 70 Squads Dispatched 1 | . 1 Investigation . | . . Extermination . | . . Reinforcement 1 | . 1 Assault . | . . Garrison . | . . Intercept . | . . Searches Triggered . | . . Construction Impeded . | . . Haulers Reinforced . | . . Active Scanning Responses . | . . Cargo Convoy Interrupts . | . . Stealth | -11 -10 --------- Run | Yrd Mat Distress Signals 1 | . 1 Communications Jammed . | . . Distress Signals . | . . Times Spotted 14 | . 14 Peak Tracking Total 4 | . 4 Tactical Retreats 1 | . 1 Traps | -11 -10 ------- Run | Yrd Mat Traps Triggered 2 | . 2 Indirectly . | . . Trap Hack Attempts . | . . Triggered . | . . Disarmed . | . . Reprogrammed . | . . Reused . | . . Traps Extracted . | . . Installed . | . . Triggered . | . . Machines | -11 -10 ---------- Run | Yrd Mat Machines Disabled . | . . Max in Single Turn . | . . Machines Repaired . | . . Machines Dismantled . | . . Machines Sabotaged . | . . Overloaded Fab Kills . | . . Hacking | -11 -10 --------- Run | Yrd Mat Machines Accessed 5 | . 5 Terminals 5 | . 5 Fabricators . | . . Repair Stations . | . . Recycling Units . | . . Scanalyzers . | . . Garrison Access . | . . Total Hacks 23 | . 23 Successful 17 | . 17 Failed 6 | . 6 Catastrophic . | . . Database Lockouts . | . . Manual 12 | . 12 Terminals 23 | . 23 Fabricators . | . . Repair Stations . | . . Recycling Units . | . . Scanalyzers . | . . Garrison Access . | . . Terminal Hacks 12 | . 12 Part Schematic 1 | . 1 Robot Analysis 4 | . 4 Prototype ID Bank 2 | . 2 Unreport Threat 2 | . 2 Locate Traps 1 | . 1 Zone Layout 2 | . 2 Fabricator Hacks . | . . Repair Station Hacks . | . . Recycling Unit Hacks . | . . Scanalyzer . | . . Garrison Access Hacks . | . . Unauthorized Hacks 5 | . 5 Terminals 5 | . 5 Botnet 5 | . 5 Fabricators . | . . Repair Stations . | . . Recycling Units . | . . Scanalyzers . | . . Garrison Access . | . . Data Cores Recovered . | . . Used . | . . Hacking Detections 5 | . 5 Full Trace Events . | . . Feedback Events . | . . Feedback Blocked . | . . Robot Schematics Acquired . | . . Robots Built . | . . Authchips . | . . Time . | . . Total Robot Build Rating . | . . Part Schematics Acquired 1 | . 1 Parts Built . | . . Authchips . | . . Time . | . . Total Part Build Rating . | . . Part Studies Acquired . | . . Parts Repaired . | . . Time . | . . Parts Recycled . | . . Recycled Matter . | . . Retrieved Matter . | . . Retrieved Components . | . . Parts Scanalyzed . | . . Part Schematics Acquired . | . . Parts Damaged . | . . Bothacking | -11 -10 ------------ Run | Yrd Mat Used RIF Installer . | . . Robots Hacked . | . . Non-combat . | . . Combat . | . . Robot Hacks Applied . | . . Relay Couplers Released . | . . Fabnet Peak Effective % . | . . Robots Rewired . | . . Allies Hacked . | . . Hacks Repelled . | . . Allies | -11 -10 -------- Run | Yrd Mat Total Allies . | . . Largest Group . | . . Highest-Rated Group . | . . Highest-Rated Ally . | . . Total Orders . | . . Ally Attacks . | . . Total Damage . | . . Kills . | . . Allies Corrupted . | . . Allies Melted . | . . Intel | -11 -10 ------- Run | Yrd Mat Active Infowar (turns) 23 | 12 11 Seismic 23 | 12 11 Robot Analysis Total 4 | . 4 Derelict Logs Recovered . | . . Drone Launches . | . . Drone Recoveries . | . . Exploration | -11 -10 ------------- Run | Yrd Mat Turns Passed 586 | 42 544 Spaces Moved 346 | 23 323 Core . | . . Treads 15 | . 15 Legs . | . . Wheels 331 | 23 308 Hover . | . . Flight . | . . Fastest Speed 95 | 95 100 Average Speed 110 | 99 111 Slowest Speed 240 | 100 240 Overloaded Moves . | . . Propulsion Burnouts . | . . Robots Hopped . | . . Potential Cave-ins . | . . Cave-ins Triggered . | . . Exploration Rate (%) 34 | 4 64 Regions Visited 1 Branch Regions . Pre-discovered Areas . | . . Known Exits Taken . | . . Unknown Exits Taken 1 | 1 . Scrap Searched . | . . Spaces Dug . | . . Terrain Destroyed . | . . Melee . | . . Projectile . | . . AOE . | . . Terrain Rammed . | . . Walls Destroyed . | . . Machines Disabled . | . . Actions | -11 -10 --------- Run | Yrd Mat Total 453 | 36 417 Wait 16 | . 16 Move 345 | 22 323 Hop . | . . Pick Up 5 | 1 4 Fast Attach 3 | 1 2 Attach 6 | 2 4 Detach 3 | 2 1 Swap 3 | 1 2 Drop 8 | 3 5 Fire 58 | 4 54 Melee . | . . Ram . | . . Kick . | . . Crush 6 | . 6 Escape Stasis . | . . Rewire . | . . Trap . | . . Miscellaneous . | . . Route ------- -11/Scrapyard -10/Materials (discovered 3 exits: [*Mat] / [*Min x2]) History --------- Turn | Location | Event 17 | -11/Scrapyard | Discovered new exit (range 3) 43 | -11/Scrapyard | Entered Materials 168 | -10/Materials | Discovered new exit (range 14) 300 | -10/Materials | Discovered new exit (range 5) 318 | -10/Materials | Build established: Mutant 420 | -10/Materials | Discovered new exit (range 11) 441 | -10/Materials | Core integrity fell below 50% 559 | -10/Materials | Core integrity fell below 20% 587 | -10/Materials | Destroyed by G-47 Trooper with Particle Gun Last Messages --------------- it, and attempt to escape before their unique data core can be poached by hostiles. O-16 Technicians are not built for combat, thus their sensitive systems are especially susceptible to electromagnetic damage. 00512_ Connecting with Terminal... 00518_ System corrupted: Heat flow error (+118). 00544_ Ion Engine destroyed. 00546_ Com. Wheel destroyed. 00552_ Sml. Laser destroyed. 00558_ Critical hit (Burn: +37). 00560_ Acquired Mining Laser. 00562_ M-13 Machinist repairs G-47 Trooper. 00567_ Critical hit (Burn: +37). 00571_ Mining Laser destroyed. 00572_ Slammed into G-47 Trooper. 00575_ Critical hit (Burn: +37). 00575_ Slammed into G-47 Trooper. 00585_ System corrupted: Lgt. Treads fused. 00587_ Critical hit (Burn: +37). Map ----- +----------------------------------------------------+ | # # % ####### #?????#! # | | # # #=""""" """"" + #?????#! ##### | | #### #%""""" """"" ## #?????##! | | # #%""""" """"" ## #??????#### ! | | # #== ## #?????????# % | | ???# +%= ! ## #?????????# ##### | | ???# ####/########### #?????????# ## | | ??## ##?#% ?^????? ## "" | | ??# ### ^ ??? ## "" | | ??# ^ """ ^ """ """ ## "" | | ??# " ^ """"" """"" """"" ##### | | ??# ^ """"" """"" """"" ????# "" | | ??# ! ## """"" """?? """"" ????# "" | | ########## """ """ "?" ????# "" | | ! + "T" ? ? ????? | | T # ? ? ????? | | # ??? ????? | | """ """ ######### #######?????????????????### | | """ """ ## ###g####### ???????????????????? | | """ """ ## """ # # ???????????????????? | | ## """ # # ???????????????????? | | ## """ # # "???????????????????? | | ########### """ # t # "???????????????????? | | ??????????# """ # # "???????????????????? | | ??????????# # g #########???????????### | | ??????????# # m @ + #????# | | ????##########+### # #????# | | ?#### ########### #????#!! | | ?# ?????#!! | | ?# ^^ ?????# | | ?????????????????????^^??????? ??????# | | ??????????????????????????????######### ??????# | | ???????????????????????????????????????????????# | | ???????????????????????????????????????????????# | | ???????????????????????????????????????????????# | | ???????????????????????????????????????????????# | | ???????????????????????????????????????????????# | | ???????????????????????????????????????????????# | | ???????????????????????????????????????????????### | | ?????????????????????????????????????????????????? | | ?????????????????????????????????????????????????? | | ?????????????????????????????????????????????????? | | ?????????????????????????????????????????????????? | | ?????????????????????????????????????????????????? | | ?????????????????????????????????????????????????? | | ?????????????????????????????????????????????????? | | ?????????????????????????????????????????????????? | | ?????????????????????????????????????????????????? | | ?????????????????????????????????????????????????? | | ?????????????????????????????????????????????????? | +----------------------------------------------------+ Best States ------------- Heat Dissipation 25 Energy Generation 10 Energy Capacity 250 Matter Stores 300 Matter Capacity 300 Sight Range 16 Terrain Scan Density 10 Evasion (%) 41 Targeting Accuracy 5 Recoil Reduction 2 Item Schematics ----------------- Lrg. Storage Unit | -10/Materials | Hacked Robot Schematics ------------------ None Fabricated ------------ Nothing Repaired ---------- Nothing Studied --------- None Alien Tech Used ----------------- None Achievements -------------- None Challenges ------------ None Game ------ Seed DiametricNodeNanoactuators Manual? 0 Play Time 00:09:44 Cumulative 192.1 hours Start 2026.04.20 @ 17:50:25 End 2026.04.20 @ 18:02:41 Sessions 1 Manual Loads 0 Difficulty Rogue Special Mode None Game No. 115 Rogue 115 Adventurer 0 Explorer 0 Win Type - Total 6 Types 3/0/1/1/0/0/0/1/0/0 Lore% 64 Gallery% 57 Achievement% 50 Wizard Run 0 Options --------- Layout 2 ASCII 0 Keyboard 1 Movement Arrows Keybinds 0 Fullscreen 2 Font 24/Terminus Map View 50x44 Zoom Use 0% Tactical HUD 1 Map Filters NONE Filters NONE Steam 1 RUN: 6618ef6d-1005-424a-8d67-d90825579945